[Event "39th Muensterland Open 2022"]
[Site "Muenster"]
[Date "2022.10.08"]
[Round "9.8"]
[White "De Roda Husman, Juan"]
[Black "Woestmann, Ulrich"]
[Result "1/2-1/2"]
[ECO "B90"]
[WhiteElo "2288"]
[BlackElo "1992"]
[Annotator "TA"]
[PlyCount "75"]
[EventDate "2022.10.01"]
[EventType "swiss"]
[EventCountry "GER"]
[SourceTitle "playchess.com"]
[Source "ChessBase"]
[SourceQuality "1"]
[TimeControl "40/5400+30:1800+30"]

{[%evp 12,75,9,10,25,20,31,0,21,10,21,24,19,-3,44,17,33,12,30,10,18,18,28,9,33,33,33,33,24,35,48,0,40,37,55,52,61,37,45,45,46,57,63,45,63,58,52,52,63,52,69,69,71,71,58,53,58,49,60,56,56,61,60,58,102,112]} 1. e4 {[%emt 0:00:04]} c5 {[%emt 0:00:17]} 2. Nf3 {[%emt 0:00:09]} d6 {[%emt 0:00:05]} 3. d4 {[%emt 0:00:09]} cxd4 {[%emt 0:00:02]} 4. Nxd4 {[%emt 0:00:10]} Nf6 {[%emt 0:00:04]} 5. Nc3 {[%emt 0:00:13]} a6 {[%emt 0:00:03]} 6. h3 {[%emt 0:00:18]} e5 {[%emt 0:00:13]} 7. Nde2 {[%emt 0:00:11]} h5 {[%emt 0:00:51] B90: Sicilian Najdorf: Unusual White 6th moves, 6 Be3 Ng4 and 6 Be3 e5.} 8. g3 {[%emt 0:00:21]} b5 {[%emt 0:06:34]} 9. Bg2 {[%emt 0:07:07]} Bb7 {[%emt 0:00:59] The position is equal.} 10. Bg5 {[%emt 0:01:27]} Be7 {[%emt 0:00:14]} 11. Bxf6 {[%emt 0:01:44]} Bxf6 {[%emt 0:00:40]} 12. O-O {[%emt 0:01:40] [#]} Qb6 $146 {[%emt 0:10:30]} (12... h4 $11 {feels stronger.}) ({Predecessor:} 12... Be7 13. Nd5 Nd7 14. Nec3 Nb6 15. f4 h4 16. fxe5 dxe5 17. Qg4 O-O 18. Rad1 Nxd5 19. Nxd5 Bxd5 20. Rxd5 Qc8 21. Rd7 Ra7 22. Rxa7 Bc5+ 23. Kh2 Qxg4 {½-½ (23) Reimann,S (2107)-Schmidt,G (2107) Bayern 2017}) 13. a4 {[%emt 0:17:58]} Nd7 {[%emt 0:05:23]} 14. Nd5 {[%emt 0:11:19]} Bxd5 {[%emt 0:00:32]} 15. Qxd5 {[%emt 0:00:08]} Rc8 {[%emt 0:02:02]} 16. axb5 {[%emt 0:00:42]} axb5 {[%emt 0:00:18]} 17. Qd2 {[%emt 0:08:18]} Be7 {[%emt 0:10:24]} 18. Nc3 {[%emt 0:11:21][%cal Be2c3,Bc3a2,Ba2b4][%mdl 32]} Nf6 {[%emt 0:00:53]} 19. Na2 {[%emt 0:03:14]} O-O {[%emt 0:03:05]} 20. c3 {[%emt 0:00:57]} Rc4 {[%emt 0:03:42]} 21. Qe2 {[%emt 0:01:13]} (21. Rfe1 $14) 21... Ra4 {[%emt 0:00:39]} (21... d5 $5) 22. Nb4 {[%emt 0:00:48]} Rfa8 {[%emt 0:01:12]} 23. Rad1 {[%emt 0:00:15]} g6 {[%emt 0:03:38]} 24. h4 {[%emt 0:02:31]} Kg7 {[%emt 0:01:57]} 25. Rfe1 {[%emt 0:02:04]} R4a5 {[%emt 0:06:00]} 26. Qd2 {[%emt 0:02:48]} R8a7 {[%emt 0:04:11]} 27. Bf3 {[%emt 0:03:30][%cal Bg2f3,Bf3d1,Bd1b3][%mdl 32]} Ra8 {[%emt 0:01:32]} 28. Kg2 {[%emt 0:00:59]} Qb7 {[%emt 0:02:50]} 29. Qe3 {[%emt 0:03:51]} Bf8 {[%emt 0:04:53]} 30. Rc1 {[%emt 0:08:23] White is more active.} Be7 {[%emt 0:00:22]} 31. Bd1 {[%emt 0:01:50]} Ra1 {[%emt 0:01:38]} 32. Bb3 {[%emt 0:00:36]} Rxc1 {[%emt 0:01:00]} 33. Qxc1 {[%emt 0:00:02]} Qb6 {[%emt 0:05:22]} (33... Nxe4 $2 34. Bd5 Qb6 35. Bxe4 $18) 34. Qd2 {[%emt 0:01:38]} Qc5 {[%emt 0:02:24]} 35. Qe2 {[%emt 0:04:35]} Ra7 {[%emt 0:02:36]} 36. Rd1 {[%emt 0:00:41]} Bd8 {[%emt 0:00:47]} 37. Nd5 {[%emt 0:01:17]} Rb7 {[%emt 0:04:11]} 38. Nxf6 {[%emt 0:00:57] Weighted Error Value: White=0.08 (flawless) /Black=0.11 (very precise)} 1/2-1/2

[Event "39th Muensterland Open 2022"]
[Site "Muenster"]
[Date "2022.10.08"]
[Round "9.9"]
[White "Barten, Ralf"]
[Black "Schmitzer, Klaus"]
[Result "0-1"]
[ECO "B12"]
[WhiteElo "2012"]
[BlackElo "2250"]
[Annotator "TA"]
[PlyCount "106"]
[EventDate "2022.10.01"]
[EventType "swiss"]
[EventCountry "GER"]
[SourceTitle "playchess.com"]
[Source "ChessBase"]
[SourceQuality "1"]
[TimeControl "40/5400+30:1800+30"]

{[%evp 9,106,18,13,8,27,10,14,0,18,0,10,0,7,0,11,4,23,-36,-41,-28,-16,-22,-24,-30,-23,-26,-18,-47,-47,-47,-26,-47,-29,-71,-71,-71,-41,-64,-63,-121,-40,-53,25,29,34,39,35,-17,106,137,134,93,111,69,75,70,192,205,210,187,194,114,123,75,154,158,437,189,165,0,161,122,202,46,60,12,37,39,47,0,0,0,0,-29,-23,-15,-16,-459,-315,-567,-559,-29970,-29971,-29997,-29993,-29993,-29990,-29990,-29991]} 1. e4 {[%emt 1:31:00]} c6 {[%emt 0:00:28]} 2. d4 {[%emt 0:00:00]} d5 {[%emt 0:00:06]} 3. e5 {[%emt 0:00:00]} Bf5 {[%emt 0:00:11]} 4. h4 {[%emt 0:00:00]} h5 {[%emt 0:00:18]} 5. Bd3 {[%emt 0:00:00]} Bxd3 {[%emt 0:01:13]} 6. Qxd3 {[%emt 0:00:00][%cal Oe5e6] B12: Caro-Kann: Advance Variation.} Qa5+ {[%emt 0:00:40]} 7. Nd2 {[%emt 0:00:00][%cal Oe5e6] And now e6! would win.} e6 $1 {[%emt 0:02:56]} 8. Ngf3 {[%emt 0:00:00] The position is equal.} Ne7 {[%emt 0:07:53]} 9. O-O {[%emt 0:00:00][%cal Ob2b4]} Nf5 {[%emt 0:00:18]} 10. Rd1 {[%emt 0:00:00]} Be7 {[%emt 0:04:47]} 11. g3 {[%emt 0:00:00] [#]} Nd7 $146 {[%emt 0:08:53]} ({Predecessor:} 11... O-O 12. b3 Rd8 13. Nf1 c5 14. Ne3 Nxd4 15. Nxd4 cxd4 16. Qxd4 Nc6 17. Qf4 Qc3 {0-1 (23) Jeet,J (2279)-Murzin,V (2505) Chess.com INT 2021}) 12. Nb3 {[%emt 0:00:00]} Qb5 {[%emt 0:19:07]} 13. Bg5 {[%emt 0:00:00]} (13. Qxb5 $11 cxb5 14. a3) 13... Qxd3 $15 {[%emt 0:01:57]} 14. Rxd3 {[%emt 0:00:00]} c5 {[%emt 0:02:08][%cal Bc6c5,Bc5c4][%mdl 32]} 15. Bxe7 {[%emt 0:00:00]} c4 {[%emt 0:00:25][%mdl 64] Deflection, Double Attack} 16. Rdd1 {[%emt 0:00:00]} Kxe7 {[%emt 0:03:42]} (16... cxb3 {is more complex.} 17. Bd6 bxc2 18. Rd2 Nxd6 19. exd6 Nb6) 17. Nc1 {[%emt 0:00:00]} b5 {[%emt 0:03:25]} 18. a4 {[%emt 0:00:00]} b4 {[%emt 0:10:50]} 19. Ne2 {[%emt 0:00:00]} Rhc8 {[%emt 0:04:37]} 20. Rdc1 {[%emt 0:00:00]} Rc6 {[%emt 0:02:22]} 21. b3 {[%emt 0:00:00]} (21. Nf4) 21... Rac8 {[%emt 0:01:00]} 22. Rab1 {[%emt 0:00:00]} f6 {[%emt 0:04:00] Black has more active pieces.} 23. exf6+ {[%emt 0:00:00]} gxf6 {[%emt 0:00:36]} 24. c3 {[%emt 0:00:00]} (24. Re1 $15) 24... bxc3 {[%emt 0:07:49]} (24... cxb3 25. Rxb3 a5) ({Black should try} 24... cxb3 $17 {[%cal Rb4c3]} 25. Rxb3 a5) 25. Rxc3 {[%emt 0:00:00]} Nb6 {[%emt 0:03:37]} (25... Kd6) (25... Kd6 $15) 26. a5 $11 {[%emt 0:00:00]} Nd7 {[%emt 0:01:32]} 27. Nf4 {[%emt 0:00:00]} cxb3 {[%emt 0:02:16]} 28. Rcxb3 {[%emt 0:00:00]} (28. Rxc6 Rxc6 29. Rxb3) (28. Rxc6 $14 Rxc6 29. Rxb3) 28... Ra6 {[%emt 0:01:33]} (28... Ng7) (28... Ng7 $1 $11 {keeps the balance.}) 29. Re1 $16 {[%emt 0:00:00]} (29. Nxh5 Rxa5 30. Nf4 Kd6) ({Of course not} 29. Nxh5 $6 Rxa5 30. Nf4 Kd6 $14) 29... Rb8 {[%emt 0:02:36] Inhibits Rb7.} 30. Rxb8 {[%emt 0:00:45]} (30. Rc3) 30... Nxb8 {[%emt 0:00:01]} 31. Nxd5+ {[%emt 0:00:21]} Kf7 {[%emt 0:00:23]} 32. Nf4 {[%emt 0:01:30]} Ng7 {[%emt 0:01:16]} (32... Rxa5 33. Nxe6 (33. Rxe6 Ra3) 33... Nc6) (32... Rxa5 $14 33. Nxe6 (33. Rxe6 Ra3 $16) 33... Nc6) 33. Rb1 $18 {[%emt 0:01:39]} Nc6 {[%emt 0:01:22]} 34. Rb7+ {[%emt 0:01:18]} Kg8 {[%emt 0:00:01]} 35. d5 {[%emt 0:02:35]} (35. Nd2 $18) 35... exd5 {[%emt 0:01:31]} 36. Nxd5 {[%emt 0:01:07]} (36. Rc7 $142) 36... Nxa5 {[%emt 0:00:06]} (36... Ne8 $142) 37. Rc7 $16 {[%emt 0:02:48]} Ne8 $2 {[%emt 0:00:55]} (37... Nb3 $16 38. Rc3 Rd6) 38. Re7 {[%emt 0:04:52]} (38. Rc8 $142) 38... Ng7 $18 {[%emt 0:00:48]} 39. Rc7 $2 {[%emt 0:00:19]} (39. Nd2 $18) 39... Nb3 $2 {[%emt 0:00:43]} (39... Ne8 $1 $11 {and Black has nothing to worry.} 40. Rc8 Kf7 41. Rxe8 Kxe8) 40. Ne7+ {[%emt 0:01:35]} Kh8 {[%emt 0:00:57] [#]} (40... Kf8 $16) 41. Kg2 $2 {[%emt 0:03:17]} ({White should play} 41. Rc3 $1 $18 {[%cal Rc3b3]} Rb6 42. Nd5) 41... Ne6 $14 {[%emt 0:03:36]} 42. Rc8+ {[%emt 0:05:34]} (42. Rd7 $14) 42... Kh7 {[%emt 0:02:52]} 43. Nd5 {[%emt 0:01:17]} Kg7 {[%emt 0:02:12]} 44. Rb8 {[%emt 0:01:25]} (44. Rc3 $14 Nbc5 {[#]} 45. Nd4 $1) 44... Nbc5 $11 {[%emt 0:02:12]} 45. Ne3 {[%emt 0:01:36]} Ra2 {[%emt 0:01:08]} 46. g4 {[%emt 0:03:39]} Ne4 {[%emt 0:03:09]} 47. Rb7+ {[%emt 0:02:02]} Kf8 {[%emt 0:04:32]} 48. Nd1 {[%emt 0:04:15][%mdl 8192]} (48. Rb8+ $11 Kf7 49. Rb7+ Ke8 50. Kg1 (50. Rb8+ Kd7 $17)) 48... Nf4+ {[%emt 0:01:16]} 49. Kf1 $2 {[%emt 0:01:36]} (49. Kh1 hxg4 50. Rb4) 49... hxg4 $19 {[%emt 0:00:56][%cal Bh5g4,Bg4g3,Bg3g2][%mdl 32]} 50. Nh2 {[%emt 0:00:56]} g3 {[%emt 0:04:11] Black mates.} 51. Ng4 {[%emt 0:01:48]} g2+ {[%emt 0:01:58]} 52. Kg1 {[%emt 0:00:26]} Nd2 {[%emt 0:00:20][%cal Rd2f3]} 53. Rb8+ {[%emt 0:05:10]} Ke7 {[%emt 0:01:52] Quite a comeback for Black.  Weighted Error Value: White=0.65/Black=0.28 (precise)} 0-1

[Event "39th Muensterland Open 2022"]
[Site "Muenster"]
[Date "2022.10.08"]
[Round "9.10"]
[White "Bade, Hans-Juergen"]
[Black "Panjer, Sidney"]
[Result "1/2-1/2"]
[ECO "C54"]
[WhiteElo "1975"]
[BlackElo "2197"]
[Annotator "TA"]
[PlyCount "42"]
[EventDate "2022.10.01"]
[EventType "swiss"]
[EventCountry "GER"]
[SourceTitle "playchess.com"]
[Source "ChessBase"]
[SourceQuality "1"]
[TimeControl "40/5400+30:1800+30"]

{[%evp 15,42,9,36,31,31,-5,0,0,0,0,22,0,0,-21,5,-95,-36,-45,-33,-92,-48,-45,0,-2,0,0,0,-7,0]} 1. e4 {[%emt 0:00:02]} e5 {[%emt 0:00:04]} 2. Nf3 {[%emt 0:00:06]} Nc6 {[%emt 0:00:02]} 3. Bc4 {[%emt 0:00:29]} Bc5 {[%emt 0:00:10]} 4. c3 {[%emt 0:00:11]} Nf6 {[%emt 0:00:04]} 5. d3 {[%emt 0:00:06]} d6 {[%emt 0:00:07]} 6. Bb3 {[%emt 0:00:07]} a6 {[%emt 0:00:34]} 7. h3 {[%emt 0:00:16]} Ba7 {[%emt 0:00:13]} 8. Nbd2 {[%emt 0:01:08]} Ne7 {[%emt 0:01:40]} 9. Nf1 {[%emt 0:00:33] C54: Giuoco Piano: 4 c3 Nf6, main lines with 5 d4 and 5 d3.} Ng6 {[%emt 0:00:28]} 10. Be3 {[%emt 0:07:22]} O-O {[%emt 0:01:18]} 11. Bxa7 {[%emt 0:04:31]} Rxa7 {[%emt 0:00:02]} 12. Ne3 {[%emt 0:00:24]} Be6 {[%emt 0:07:39] [#]} 13. Bxe6 $146 {[%emt 0:13:31]} ({Predecessor:} 13. Bc2 d5 14. exd5 Nxd5 15. O-O c5 16. Re1 b5 17. Nf1 Ndf4 18. Ng3 Rd7 19. Nxe5 Nxe5 20. Rxe5 Nxd3 21. Bxd3 Rxd3 {½-½ (21) Day,L (2380)-Nickoloff,B (2420) North Bay 1995}) 13... fxe6 {[%emt 0:00:03]} 14. Qb3 {[%emt 0:00:11]} Qd7 {[%emt 0:01:40]} 15. Ng4 {[%emt 0:02:48]} (15. O-O $11 {remains equal.}) 15... b5 {[%emt 0:17:06]} (15... Nf4 $17 16. O-O Nxd3 17. Nxf6+ Rxf6) 16. Nxf6+ {[%emt 0:04:57]} Rxf6 {[%emt 0:06:08]} 17. d4 {[%emt 0:04:00]} (17. Qd1 $15) 17... exd4 {[%emt 0:03:34]} 18. cxd4 {[%emt 0:03:01]} c5 {[%emt 0:04:57]} (18... Ra8 $5 {[%cal Ra8f8]}) 19. dxc5 {[%emt 0:09:31] The position is equal.} dxc5 {[%emt 0:00:28]} 20. O-O {[%emt 0:01:04]} c4 {[%emt 0:01:48]} 21. Qe3 {[%emt 0:00:18]} Ra8 {[%emt 0:22:32] Weighted Error Value: White=0.23 (precise) /Black=0.24 (precise)} 1/2-1/2